[Event "Late-Titled-Tuesday-Blitz-March-05-2024"]
[Site "Chess.com"]
[Date "2024.03.05"]
[Round "11"]
[White "K_A_S_T_O_R"]
[Black "TenisMaster"]
[Result "1-0"]
[WhiteElo "2862"]
[BlackElo "2888"]
[TimeControl "180+1"]
[EndTime "16:03:25 PST"]
[Termination "K_A_S_T_O_R won by resignation"]

1. e4 {[%clk 0:03:00.9]} 1... d5 {[%clk 0:02:58.8]} 2. exd5 {[%clk 0:03:00.7]}
2... Qxd5 {[%clk 0:02:59.7]} 3. Nc3 {[%clk 0:03:01.2]} 3... Qa5 {[%clk
0:02:59.5]} 4. g3 {[%clk 0:03:01.8]} 4... Nf6 {[%clk 0:02:59.6]} 5. Bg2 {[%clk
0:03:02.4]} 5... c6 {[%clk 0:03:00.1]} 6. h3 {[%clk 0:03:02.7]} 6... Bf5 {[%clk
0:02:59.1]} 7. Nf3 {[%clk 0:03:03.2]} 7... e6 {[%clk 0:02:59.3]} 8. O-O {[%clk
0:03:03.9]} 8... Nbd7 {[%clk 0:02:59.4]} 9. d3 {[%clk 0:03:04.5]} 9... Be7
{[%clk 0:02:59.4]} 10. Qe2 {[%clk 0:03:05.1]} 10... O-O {[%clk 0:02:58.2]} 11.
Bd2 {[%clk 0:03:05.6]} 11... Qc7 {[%clk 0:02:57.6]} 12. Rfe1 {[%clk 0:03:05.9]}
12... Rfe8 {[%clk 0:02:57.5]} 13. a3 {[%clk 0:03:06.2]} 13... a5 {[%clk
0:02:54.8]} 14. Rab1 {[%clk 0:03:05.7]} 14... h6 {[%clk 0:02:54.5]} 15. b4
{[%clk 0:03:05.8]} 15... axb4 {[%clk 0:02:54.8]} 16. axb4 {[%clk 0:03:06.5]}
16... Nd5 {[%clk 0:02:54.2]} 17. Ne4 {[%clk 0:03:06.5]} 17... Ra2 {[%clk
0:02:50.9]} 18. Rec1 {[%clk 0:03:05.9]} 18... Ne5 {[%clk 0:02:35.1]} 19. Nd4
{[%clk 0:02:57.8]} 19... Bh7 {[%clk 0:02:27.6]} 20. f4 {[%clk 0:02:57.4]} 20...
Qb6 {[%clk 0:02:17.2]} 21. Qf2 {[%clk 0:02:57.4]} 21... Nd7 {[%clk 0:02:01.5]}
22. Nc3 {[%clk 0:02:49.7]} 22... Nxc3 {[%clk 0:01:57.2]} 23. Bxc3 {[%clk
0:02:50.1]} 23... Bf6 {[%clk 0:01:55.2]} 24. Ne2 {[%clk 0:02:45.1]} 24... Qc7
{[%clk 0:01:44]} 25. Bxf6 {[%clk 0:02:41.8]} 25... Nxf6 {[%clk 0:01:44.9]} 26.
Nc3 {[%clk 0:02:41.8]} 26... Ra3 {[%clk 0:01:44.2]} 27. Qd2 {[%clk 0:02:33.7]}
27... Qd6 {[%clk 0:01:41.1]} 28. Kh2 {[%clk 0:02:33.8]} 28... h5 {[%clk
0:01:40.4]} 29. Ne2 {[%clk 0:02:21.6]} 29... h4 {[%clk 0:01:38.5]} 30. Rf1
{[%clk 0:02:14.1]} 30... hxg3+ {[%clk 0:01:33.5]} 31. Nxg3 {[%clk 0:02:14.6]}
31... Ra2 {[%clk 0:01:32.1]} 32. Ra1 {[%clk 0:02:07.2]} 32... Rea8 {[%clk
0:01:29.6]} 33. Rxa2 {[%clk 0:02:04.7]} 33... Rxa2 {[%clk 0:01:30.5]} 34. Rf2
{[%clk 0:01:55.2]} 34... Nd5 {[%clk 0:01:27.8]} 35. Bxd5 {[%clk 0:01:55]} 35...
cxd5 {[%clk 0:01:27.5]} 36. Qc3 {[%clk 0:01:52]} 36... Bg6 {[%clk 0:01:19.2]}
37. Qc8+ {[%clk 0:01:47.2]} 37... Kh7 {[%clk 0:01:19]} 38. Qxb7 {[%clk
0:01:47.5]} 38... d4 {[%clk 0:01:16]} 39. Ne4 {[%clk 0:01:44.6]} 39... Bxe4
{[%clk 0:01:15.9]} 40. Qxe4+ {[%clk 0:01:44.9]} 40... g6 {[%clk 0:01:16.2]} 41.
Qe5 {[%clk 0:01:38.5]} 41... Qxb4 {[%clk 0:01:10.4]} 42. Qc7 {[%clk 0:01:34.4]}
42... Kg7 {[%clk 0:01:07.1]} 43. Rg2 {[%clk 0:01:30.5]} 43... Ra5 {[%clk
0:00:54.9]} 44. Re2 {[%clk 0:01:08.8]} 44... Rf5 {[%clk 0:00:45.2]} 45. Kg3
{[%clk 0:01:08.6]} 45... Qb1 {[%clk 0:00:43.4]} 46. Kg2 {[%clk 0:00:59.4]} 46...
Qd1 {[%clk 0:00:42.8]} 47. Rf2 {[%clk 0:00:59.6]} 47... Qe1 {[%clk 0:00:34.3]}
48. Qd6 {[%clk 0:00:54]} 48... e5 {[%clk 0:00:33.8]} 49. h4 {[%clk 0:00:50.7]}
49... Qe3 {[%clk 0:00:32.6]} 50. Rf3 {[%clk 0:00:49.5]} 50... Qe2+ {[%clk
0:00:32.8]} 51. Kg3 {[%clk 0:00:49.7]} 51... exf4+ {[%clk 0:00:23.4]} 52. Rxf4
{[%clk 0:00:49.5]} 52... Qe1+ {[%clk 0:00:23.6]} 53. Kg2 {[%clk 0:00:47.7]}
53... Qd2+ {[%clk 0:00:22.4]} 54. Kf3 {[%clk 0:00:43.7]} 54... Qe3+ {[%clk
0:00:20.7]} 55. Kg4 {[%clk 0:00:44.1]} 55... Qg1+ {[%clk 0:00:20.7]} 56. Kf3
{[%clk 0:00:44.1]} 56... Qf1+ {[%clk 0:00:19.3]} 57. Ke4 {[%clk 0:00:42.7]}
57... Qg2+ {[%clk 0:00:13.6]} 58. Kxd4 {[%clk 0:00:41.6]} 58... Qg1+ {[%clk
0:00:13.3]} 59. Kc4 {[%clk 0:00:36.5]} 59... Ra5 {[%clk 0:00:11]} 60. Qd4+
{[%clk 0:00:36.3]} 60... Kg8 {[%clk 0:00:10.7]} 61. Qxg1 {[%clk 0:00:35.4]} 1-0

[Event "Late-Titled-Tuesday-Blitz-March-05-2024"]
[Site "Chess.com"]
[Date "2024.03.05"]
[Round "11"]
[White "Slovak_fighter2000"]
[Black "corvachesky"]
[Result "1-0"]
[WhiteElo "2647"]
[BlackElo "2517"]
[TimeControl "180+1"]
[EndTime "16:03:27 PST"]
[Termination "Slovak_fighter2000 won on time"]

1. c4 {[%clk 0:03:00]} 1... Nf6 {[%clk 0:02:56.4]} 2. Nc3 {[%clk 0:02:59.8]}
2... c5 {[%clk 0:02:54.4]} 3. g3 {[%clk 0:02:57.2]} 3... d5 {[%clk 0:02:54.4]}
4. cxd5 {[%clk 0:02:57.2]} 4... Nxd5 {[%clk 0:02:53.2]} 5. Bg2 {[%clk
0:02:57.6]} 5... Nc7 {[%clk 0:02:53.7]} 6. Nf3 {[%clk 0:02:55.4]} 6... Nc6
{[%clk 0:02:53.7]} 7. d3 {[%clk 0:02:55.3]} 7... e5 {[%clk 0:02:53.9]} 8. O-O
{[%clk 0:02:55.3]} 8... Be7 {[%clk 0:02:53.7]} 9. Bd2 {[%clk 0:02:51.6]} 9...
O-O {[%clk 0:02:52.6]} 10. Rc1 {[%clk 0:02:51.5]} 10... b6 {[%clk 0:02:49.3]}
11. Nxe5 {[%clk 0:02:50.2]} 11... Nxe5 {[%clk 0:02:48.8]} 12. Bxa8 {[%clk
0:02:49.7]} 12... Nxa8 {[%clk 0:02:49.4]} 13. Qa4 {[%clk 0:02:49]} 13... Bh3
{[%clk 0:02:44.4]} 14. Rfe1 {[%clk 0:02:46.4]} 14... Qd7 {[%clk 0:02:37.9]} 15.
Qxd7 {[%clk 0:02:45.7]} 15... Bxd7 {[%clk 0:02:36.1]} 16. Nd5 {[%clk 0:02:39]}
16... Bd6 {[%clk 0:02:33.3]} 17. b4 {[%clk 0:02:33]} 17... cxb4 {[%clk 0:02:24]}
18. Bxb4 {[%clk 0:02:33.9]} 18... Bxb4 {[%clk 0:02:13.6]} 19. Nxb4 {[%clk
0:02:34.8]} 19... Be6 {[%clk 0:02:05.5]} 20. a3 {[%clk 0:02:30.2]} 20... a5
{[%clk 0:01:59.7]} 21. Nc6 {[%clk 0:02:26.2]} 21... Nxc6 {[%clk 0:01:56.9]} 22.
Rxc6 {[%clk 0:02:27.1]} 22... Rb8 {[%clk 0:01:51.6]} 23. d4 {[%clk 0:02:20.2]}
23... b5 {[%clk 0:01:48.2]} 24. Ra6 {[%clk 0:02:12.6]} 24... a4 {[%clk
0:01:43.3]} 25. e4 {[%clk 0:02:07.8]} 25... Bc4 {[%clk 0:01:43.3]} 26. d5 {[%clk
0:02:02.2]} 26... Kf8 {[%clk 0:01:42.5]} 27. Rb1 {[%clk 0:01:59.1]} 27... Nb6
{[%clk 0:01:28.8]} 28. Ra5 {[%clk 0:01:46.5]} 28... Ke7 {[%clk 0:01:21.3]} 29.
Ra7+ {[%clk 0:01:38.3]} 29... Ke8 {[%clk 0:01:17.6]} 30. f4 {[%clk 0:01:33.3]}
30... Bb3 {[%clk 0:01:13.4]} 31. d6 {[%clk 0:01:28.3]} 31... Nc4 {[%clk
0:01:07]} 32. e5 {[%clk 0:01:21.4]} 32... Nxa3 {[%clk 0:01:04.6]} 33. Rc1 {[%clk
0:01:18]} 33... Nc4 {[%clk 0:01:02.6]} 34. Re1 {[%clk 0:01:09.6]} 34... Nd2
{[%clk 0:00:58.4]} 35. Re2 {[%clk 0:01:04.4]} 35... Nf3+ {[%clk 0:00:54.8]} 36.
Kf2 {[%clk 0:01:01.9]} 36... Nd4 {[%clk 0:00:55.7]} 37. Rd2 {[%clk 0:00:53.7]}
37... Ne6 {[%clk 0:00:37.6]} 38. f5 {[%clk 0:00:50.2]} 38... Nc5 {[%clk
0:00:36.4]} 39. Ke3 {[%clk 0:00:49.3]} 39... Nd7 {[%clk 0:00:21.2]} 40. Kf4
{[%clk 0:00:43.6]} 40... b4 {[%clk 0:00:21.4]} 41. Re2 {[%clk 0:00:40.3]} 41...
Nc5 {[%clk 0:00:20.1]} 42. Rc7 {[%clk 0:00:34.7]} 42... Na6 {[%clk 0:00:13.6]}
43. Ra7 {[%clk 0:00:32.3]} 43... Nc5 {[%clk 0:00:13.4]} 44. Re7+ {[%clk
0:00:32.2]} 44... Kf8 {[%clk 0:00:12.9]} 45. Rc7 {[%clk 0:00:31.9]} 45... Na6
{[%clk 0:00:10.5]} 46. Rc6 {[%clk 0:00:32]} 46... Ra8 {[%clk 0:00:09.9]} 47. e6
{[%clk 0:00:31.6]} 47... fxe6 {[%clk 0:00:10.5]} 48. fxe6 {[%clk 0:00:32.5]}
48... a3 {[%clk 0:00:10.7]} 49. d7 {[%clk 0:00:28.3]} 49... Bxe6 {[%clk
0:00:06]} 50. Rexe6 {[%clk 0:00:24.1]} 50... a2 {[%clk 0:00:02.4]} 51. Rxa6
{[%clk 0:00:22.2]} 51... Rd8 {[%clk 0:00:01.6]} 52. Rxa2 {[%clk 0:00:20.6]} 1-0

[Event "Late-Titled-Tuesday-Blitz-March-05-2024"]
[Site "Chess.com"]
[Date "2024.03.05"]
[Round "11"]
[White "MatthewG-p4p"]
[Black "BeanScreen"]
[Result "1-0"]
[WhiteElo "2887"]
[BlackElo "2713"]
[TimeControl "180+1"]
[EndTime "16:03:32 PST"]
[Termination "MatthewG-p4p won by checkmate"]

1. f4 {[%clk 0:03:00.9]} 1... d5 {[%clk 0:02:59.7]} 2. Nf3 {[%clk 0:03:01.2]}
2... Nf6 {[%clk 0:02:59.1]} 3. g3 {[%clk 0:03:01.8]} 3... g6 {[%clk 0:02:59.3]}
4. Bg2 {[%clk 0:03:02.5]} 4... Bg7 {[%clk 0:02:59.2]} 5. O-O {[%clk 0:03:03.4]}
5... O-O {[%clk 0:02:59.2]} 6. d3 {[%clk 0:03:04.3]} 6... c5 {[%clk 0:02:58.3]}
7. Ne5 {[%clk 0:03:04.7]} 7... Nbd7 {[%clk 0:02:50.9]} 8. Nxd7 {[%clk 0:03:05]}
8... Bxd7 {[%clk 0:02:39.6]} 9. e4 {[%clk 0:03:05.9]} 9... dxe4 {[%clk
0:02:36.7]} 10. dxe4 {[%clk 0:03:06.8]} 10... Bb5 {[%clk 0:02:35.8]} 11. Re1
{[%clk 0:03:03.8]} 11... Qxd1 {[%clk 0:02:23.1]} 12. Rxd1 {[%clk 0:03:04.7]}
12... Rfd8 {[%clk 0:02:19.1]} 13. Re1 {[%clk 0:03:05.4]} 13... Ng4 {[%clk
0:02:15.9]} 14. e5 {[%clk 0:03:02.2]} 14... Rd7 {[%clk 0:02:05.5]} 15. Nc3
{[%clk 0:02:57.2]} 15... Bc6 {[%clk 0:02:04.6]} 16. Bxc6 {[%clk 0:02:54.8]}
16... bxc6 {[%clk 0:02:05.5]} 17. h3 {[%clk 0:02:53.5]} 17... Nh6 {[%clk
0:02:04.5]} 18. Ne4 {[%clk 0:02:53]} 18... Rad8 {[%clk 0:02:02.7]} 19. Nxc5
{[%clk 0:02:51.5]} 19... Rd1 {[%clk 0:02:02]} 20. Be3 {[%clk 0:02:52.1]} 20...
Rxa1 {[%clk 0:01:57]} 21. Rxa1 {[%clk 0:02:53]} 21... Nf5 {[%clk 0:01:57]} 22.
Kf2 {[%clk 0:02:53.6]} 22... g5 {[%clk 0:01:39.3]} 23. Nd3 {[%clk 0:02:47.2]}
23... f6 {[%clk 0:01:32.7]} 24. Bxa7 {[%clk 0:02:40.7]} 24... h5 {[%clk
0:01:28.5]} 25. exf6 {[%clk 0:02:35]} 25... Bxf6 {[%clk 0:01:27.2]} 26. fxg5
{[%clk 0:02:34.5]} 26... Bxg5 {[%clk 0:01:26.1]} 27. Re1 {[%clk 0:02:32.8]}
27... h4 {[%clk 0:01:22.9]} 28. g4 {[%clk 0:02:26.4]} 28... Ng3 {[%clk 0:01:12]}
29. Kg2 {[%clk 0:02:17.3]} 29... Ra8 {[%clk 0:01:10.8]} 30. Bc5 {[%clk
0:02:13.8]} 30... Rxa2 {[%clk 0:01:06.7]} 31. Bxe7 {[%clk 0:02:11.1]} 31... Bxe7
{[%clk 0:01:03.5]} 32. Rxe7 {[%clk 0:02:12]} 32... Ra1 {[%clk 0:00:57.3]} 33.
Re1 {[%clk 0:02:06.1]} 33... Ra4 {[%clk 0:00:54.1]} 34. Re6 {[%clk 0:02:01.6]}
34... Ra1 {[%clk 0:00:45.6]} 35. Rxc6 {[%clk 0:01:57.9]} 35... Rd1 {[%clk
0:00:44.9]} 36. Rf6 {[%clk 0:01:55.9]} 36... Ne4 {[%clk 0:00:44.4]} 37. Rh6
{[%clk 0:01:32.7]} 37... Rd2+ {[%clk 0:00:43.6]} 38. Kf3 {[%clk 0:01:33.3]}
38... Ng5+ {[%clk 0:00:43.4]} 39. Ke3 {[%clk 0:01:33.9]} 39... Rxc2 {[%clk
0:00:39.3]} 40. Rxh4 {[%clk 0:01:34.2]} 40... Rh2 {[%clk 0:00:31]} 41. b4 {[%clk
0:01:34.5]} 41... Rh1 {[%clk 0:00:27.9]} 42. Rh5 {[%clk 0:01:32.5]} 42... Ne6
{[%clk 0:00:18.4]} 43. Nc5 {[%clk 0:01:22]} 43... Ng7 {[%clk 0:00:16]} 44. Rh6
{[%clk 0:01:21.5]} 44... Rb1 {[%clk 0:00:15.1]} 45. Nd3 {[%clk 0:01:19.3]} 45...
Kf7 {[%clk 0:00:13.1]} 46. Kd4 {[%clk 0:01:18.8]} 46... Ne6+ {[%clk 0:00:13.1]}
47. Ke5 {[%clk 0:01:18]} 47... Ng5 {[%clk 0:00:11.5]} 48. Kf5 {[%clk 0:01:12.5]}
48... Nf3 {[%clk 0:00:11.4]} 49. h4 {[%clk 0:01:09.8]} 49... Rf1 {[%clk
0:00:10.3]} 50. Ke4 {[%clk 0:01:06]} 50... Nd2+ {[%clk 0:00:10]} 51. Ke3 {[%clk
0:01:05.2]} 51... Nc4+ {[%clk 0:00:09.9]} 52. Kd4 {[%clk 0:01:05.9]} 52... Nd2
{[%clk 0:00:09.5]} 53. g5 {[%clk 0:01:06.1]} 53... Rg1 {[%clk 0:00:08.9]} 54.
Ke3 {[%clk 0:01:05]} 54... Nc4+ {[%clk 0:00:08.6]} 55. Kf2 {[%clk 0:01:04.4]}
55... Rg4 {[%clk 0:00:07.8]} 56. Kf3 {[%clk 0:01:03.9]} 56... Rd4 {[%clk
0:00:07.8]} 57. Ke2 {[%clk 0:00:59.7]} 57... Re4+ {[%clk 0:00:07.5]} 58. Kf2
{[%clk 0:01:00.4]} 58... Rd4 {[%clk 0:00:07.7]} 59. Rf6+ {[%clk 0:00:58.9]}
59... Kg7 {[%clk 0:00:07.7]} 60. Rf4 {[%clk 0:00:59.8]} 60... Rxd3 {[%clk
0:00:05.4]} 61. Rxc4 {[%clk 0:00:59.8]} 61... Kg6 {[%clk 0:00:04.4]} 62. Ke2
{[%clk 0:00:59.6]} 62... Rb3 {[%clk 0:00:04.2]} 63. Kd2 {[%clk 0:01:00.2]} 63...
Kh5 {[%clk 0:00:04]} 64. Kc2 {[%clk 0:01:00.9]} 64... Ra3 {[%clk 0:00:03.8]} 65.
b5 {[%clk 0:01:01.3]} 65... Ra2+ {[%clk 0:00:04]} 66. Kb3 {[%clk 0:01:00.8]}
66... Ra1 {[%clk 0:00:04.1]} 67. Kb4 {[%clk 0:01:00.3]} 67... Rb1+ {[%clk
0:00:04.3]} 68. Kc5 {[%clk 0:01:01]} 68... Re1 {[%clk 0:00:03.5]} 69. b6 {[%clk
0:01:01.4]} 69... Re7 {[%clk 0:00:03.6]} 70. Rb4 {[%clk 0:01:00.9]} 70... Rb7
{[%clk 0:00:03.6]} 71. Kc6 {[%clk 0:01:01.4]} 71... Rb8 {[%clk 0:00:04]} 72. b7
{[%clk 0:01:02]} 72... Rg8 {[%clk 0:00:03.6]} 73. b8=Q {[%clk 0:01:01.6]} 73...
Rg7 {[%clk 0:00:03]} 74. Qh8+ {[%clk 0:01:01.2]} 74... Kg6 {[%clk 0:00:02.8]}
75. Qh6+ {[%clk 0:01:01.5]} 75... Kf5 {[%clk 0:00:02.6]} 76. Qf6# {[%clk
0:01:02.4]} 1-0

[Event "Late-Titled-Tuesday-Blitz-March-05-2024"]
[Site "Chess.com"]
[Date "2024.03.05"]
[Round "11"]
[White "nindjaxx8"]
[Black "Nouali_Mohamed"]
[Result "1-0"]
[WhiteElo "2710"]
[BlackElo "2553"]
[TimeControl "180+1"]
[EndTime "16:03:33 PST"]
[Termination "nindjaxx8 won on time"]

1. d4 {[%clk 0:02:55.5]} 1... Nf6 {[%clk 0:02:59]} 2. c4 {[%clk 0:02:56]} 2...
g6 {[%clk 0:02:59.3]} 3. Nc3 {[%clk 0:02:54.8]} 3... Bg7 {[%clk 0:02:59.6]} 4.
e4 {[%clk 0:02:55.3]} 4... O-O {[%clk 0:03:00.1]} 5. Be2 {[%clk 0:02:54.9]} 5...
d6 {[%clk 0:03:00.2]} 6. Be3 {[%clk 0:02:55.5]} 6... Nbd7 {[%clk 0:02:50.6]} 7.
Nf3 {[%clk 0:02:51.7]} 7... e5 {[%clk 0:02:36]} 8. O-O {[%clk 0:02:41.4]} 8...
exd4 {[%clk 0:02:35.2]} 9. Bxd4 {[%clk 0:02:40.6]} 9... Re8 {[%clk 0:02:32.7]}
10. Qc2 {[%clk 0:02:34.4]} 10... c6 {[%clk 0:02:22.6]} 11. Rad1 {[%clk 0:02:31]}
11... Qc7 {[%clk 0:02:20.8]} 12. Rfe1 {[%clk 0:02:28.2]} 12... a5 {[%clk
0:01:53.7]} 13. Bf1 {[%clk 0:02:26]} 13... Ne5 {[%clk 0:01:34.8]} 14. Nxe5
{[%clk 0:02:16.6]} 14... dxe5 {[%clk 0:01:35.7]} 15. Bc5 {[%clk 0:02:16.3]}
15... Bf8 {[%clk 0:01:02.8]} 16. Bxf8 {[%clk 0:02:10.6]} 16... Kxf8 {[%clk
0:01:03.7]} 17. c5 {[%clk 0:02:10.4]} 17... Be6 {[%clk 0:00:58.5]} 18. Rd6
{[%clk 0:02:04.2]} 18... Red8 {[%clk 0:00:58]} 19. Red1 {[%clk 0:01:59.5]} 19...
Ne8 {[%clk 0:00:57.9]} 20. R6d2 {[%clk 0:01:55.9]} 20... Rxd2 {[%clk 0:00:28]}
21. Qxd2 {[%clk 0:01:56.8]} 21... a4 {[%clk 0:00:28.1]} 22. Qh6+ {[%clk
0:01:45.9]} 22... Kg8 {[%clk 0:00:28.3]} 23. Qg5 {[%clk 0:01:41.4]} 23... f6
{[%clk 0:00:20.3]} 24. Qe3 {[%clk 0:01:36.9]} 24... a3 {[%clk 0:00:15.2]} 25. b4
{[%clk 0:01:34.2]} 25... Rd8 {[%clk 0:00:14.1]} 26. Rd2 {[%clk 0:01:29.9]} 26...
Rxd2 {[%clk 0:00:07.5]} 27. Qxd2 {[%clk 0:01:30.8]} 27... Qd7 {[%clk 0:00:07.8]}
28. Qxd7 {[%clk 0:01:14.9]} 28... Bxd7 {[%clk 0:00:08]} 29. Bc4+ {[%clk
0:01:15.6]} 29... Kf8 {[%clk 0:00:08.5]} 30. Nb1 {[%clk 0:01:16.3]} 30... Nc7
{[%clk 0:00:05.2]} 31. Nxa3 {[%clk 0:01:16.9]} 31... Be6 {[%clk 0:00:05.6]} 32.
Bxe6 {[%clk 0:01:14.2]} 32... Nxe6 {[%clk 0:00:06]} 33. Nc4 {[%clk 0:01:14.9]}
33... Ke7 {[%clk 0:00:03.2]} 34. Nd6 {[%clk 0:01:13.4]} 34... Nd8 {[%clk
0:00:02.5]} 35. Kf1 {[%clk 0:01:12.3]} 35... Kd7 {[%clk 0:00:03]} 36. Ke2 {[%clk
0:01:11.1]} 36... b6 {[%clk 0:00:03.5]} 37. Kd3 {[%clk 0:01:09.1]} 37... Ne6
{[%clk 0:00:03.3]} 38. Kc4 {[%clk 0:01:08.3]} 38... b5+ {[%clk 0:00:03.7]} 39.
Kd3 {[%clk 0:00:41.2]} 39... Nf4+ {[%clk 0:00:03.9]} 40. Kc3 {[%clk 0:00:37.2]}
40... Nxg2 {[%clk 0:00:04.8]} 41. Kb3 {[%clk 0:00:37.1]} 41... Ne1 {[%clk
0:00:04.8]} 42. a4 {[%clk 0:00:37.3]} 42... Nd3 {[%clk 0:00:05.2]} 43. axb5
{[%clk 0:00:36.8]} 43... cxb5 {[%clk 0:00:05.2]} 44. Nxb5 {[%clk 0:00:36.9]}
44... Nxf2 {[%clk 0:00:05.2]} 45. Kc4 {[%clk 0:00:36.1]} 45... Nxe4 {[%clk
0:00:05.2]} 46. Kd5 {[%clk 0:00:36.6]} 46... f5 {[%clk 0:00:03.1]} 47. c6+
{[%clk 0:00:36.7]} 47... Kd8 {[%clk 0:00:02.8]} 48. Kxe5 {[%clk 0:00:19.4]}
48... Ng5 {[%clk 0:00:02.5]} 49. Kd6 {[%clk 0:00:19.4]} 49... Nf7+ {[%clk
0:00:02.5]} 50. Kc5 {[%clk 0:00:19.7]} 50... f4 {[%clk 0:00:02.7]} 51. Kb6
{[%clk 0:00:19.8]} 51... Ne5 {[%clk 0:00:01.5]} 52. c7+ {[%clk 0:00:19]} 52...
Kd7 {[%clk 0:00:02.4]} 53. Kb7 {[%clk 0:00:19.1]} 1-0

[Event "Late-Titled-Tuesday-Blitz-March-05-2024"]
[Site "Chess.com"]
[Date "2024.03.05"]
[Round "11"]
[White "FMOlexandrProhorov"]
[Black "ZachHKL"]
[Result "0-1"]
[WhiteElo "2326"]
[BlackElo "2148"]
[TimeControl "180+1"]
[EndTime "16:03:37 PST"]
[Termination "ZachHKL won by resignation"]

1. d4 {[%clk 0:03:00.9]} 1... Nf6 {[%clk 0:02:58.2]} 2. c4 {[%clk 0:03:00.5]}
2... e6 {[%clk 0:02:58.1]} 3. Nc3 {[%clk 0:03:00.6]} 3... c5 {[%clk 0:02:56.3]}
4. Nf3 {[%clk 0:02:58.6]} 4... d6 {[%clk 0:02:53.4]} 5. g3 {[%clk 0:02:55.2]}
5... Be7 {[%clk 0:02:52.7]} 6. Bg2 {[%clk 0:02:55.4]} 6... O-O {[%clk 0:02:52]}
7. O-O {[%clk 0:02:51.2]} 7... Nbd7 {[%clk 0:02:51.1]} 8. b3 {[%clk 0:02:46.6]}
8... a6 {[%clk 0:02:49]} 9. Bb2 {[%clk 0:02:46.3]} 9... Rb8 {[%clk 0:02:49.1]}
10. a4 {[%clk 0:02:20.9]} 10... Re8 {[%clk 0:02:42.1]} 11. e4 {[%clk 0:02:19.1]}
11... cxd4 {[%clk 0:02:32.7]} 12. Nxd4 {[%clk 0:02:19]} 12... a5 {[%clk
0:02:24.3]} 13. f4 {[%clk 0:02:09.7]} 13... Qb6 {[%clk 0:02:09.1]} 14. Kh1
{[%clk 0:02:07.2]} 14... Nc5 {[%clk 0:02:01]} 15. Ndb5 {[%clk 0:02:02.3]} 15...
Rd8 {[%clk 0:01:51.7]} 16. Qc2 {[%clk 0:01:58.7]} 16... Na6 {[%clk 0:01:43]} 17.
Rad1 {[%clk 0:01:57.5]} 17... Nd7 {[%clk 0:01:38.7]} 18. Qe2 {[%clk 0:01:53.4]}
18... Ndc5 {[%clk 0:01:37.4]} 19. f5 {[%clk 0:01:42.1]} 19... Nxb3 {[%clk
0:01:24.8]} 20. Qg4 {[%clk 0:01:35.5]} 20... exf5 {[%clk 0:01:05.4]} 21. exf5
{[%clk 0:01:31.9]} 21... Bf8 {[%clk 0:00:49.2]} 22. Nd5 {[%clk 0:01:29.8]} 22...
Qc5 {[%clk 0:00:49.1]} 23. Rd3 {[%clk 0:00:40.4]} 23... Nb4 {[%clk 0:00:16.3]}
24. Rxb3 {[%clk 0:00:39.3]} 24... Nxd5 {[%clk 0:00:16.6]} 25. Bxd5 {[%clk
0:00:39.9]} 25... Qb6 {[%clk 0:00:14.5]} 26. Nd4 {[%clk 0:00:39.1]} 26... Qc7
{[%clk 0:00:13.8]} 27. Rbf3 {[%clk 0:00:34.9]} 27... Qc5 {[%clk 0:00:12.2]} 28.
Qh5 {[%clk 0:00:29.6]} 28... Qc7 {[%clk 0:00:10.7]} 29. f6 {[%clk 0:00:29.2]}
29... g6 {[%clk 0:00:11.2]} 30. Qh4 {[%clk 0:00:29.1]} 30... Bd7 {[%clk
0:00:09.8]} 31. Nf5 {[%clk 0:00:24.9]} 31... Bxf5 {[%clk 0:00:09.2]} 32. Rxf5
{[%clk 0:00:25.1]} 32... gxf5 {[%clk 0:00:08]} 33. Qg5+ {[%clk 0:00:22.8]} 33...
Kh8 {[%clk 0:00:07.9]} 34. Qxf5 {[%clk 0:00:22]} 34... Qd7 {[%clk 0:00:07.9]}
35. Qf4 {[%clk 0:00:21.4]} 35... Re8 {[%clk 0:00:06.6]} 36. Bc1 {[%clk
0:00:16.3]} 36... Qh3 {[%clk 0:00:06.1]} 37. Bg2 {[%clk 0:00:15.2]} 37... Qh5
{[%clk 0:00:05.5]} 38. Qf2 {[%clk 0:00:15]} 38... Re2 {[%clk 0:00:04.4]} 39. Qa7
{[%clk 0:00:13.5]} 39... Rbe8 {[%clk 0:00:03.5]} 40. Qxb7 {[%clk 0:00:11.5]}
40... Re1 {[%clk 0:00:03.6]} 41. Kg1 {[%clk 0:00:06.1]} 41... Rxf1+ {[%clk
0:00:03.7]} 42. Bxf1 {[%clk 0:00:06.3]} 42... Qd1 {[%clk 0:00:03.5]} 43. Bf4
{[%clk 0:00:03.7]} 43... Qd4+ {[%clk 0:00:03.3]} 44. Kg2 {[%clk 0:00:03.7]}
44... Qe4+ {[%clk 0:00:03.3]} 45. Kh3 {[%clk 0:00:04]} 45... Qxb7 {[%clk
0:00:03.1]} 46. g4 {[%clk 0:00:03.7]} 46... Qd7 {[%clk 0:00:04]} 47. Bg2 {[%clk
0:00:03.4]} 47... Qxa4 {[%clk 0:00:04.4]} 48. Bd5 {[%clk 0:00:04.3]} 48... Qb3+
{[%clk 0:00:05.1]} 49. Kh4 {[%clk 0:00:02.4]} 49... Re6 {[%clk 0:00:06]} 50.
Bxe6 {[%clk 0:00:02.2]} 50... fxe6 {[%clk 0:00:06.9]} 51. f7 {[%clk 0:00:02.2]}
51... Qd3 {[%clk 0:00:06.7]} 52. Bg5 {[%clk 0:00:03.1]} 52... Qg6 {[%clk
0:00:07]} 53. Bf6+ {[%clk 0:00:04]} 53... Qxf6+ {[%clk 0:00:07.3]} 54. g5 {[%clk
0:00:04.8]} 54... Qxf7 {[%clk 0:00:08]} 55. Kg4 {[%clk 0:00:04.6]} 55... Qg6
{[%clk 0:00:08.9]} 56. h4 {[%clk 0:00:04.7]} 56... Be7 {[%clk 0:00:09.8]} 57. h5
{[%clk 0:00:05.6]} 57... Qxg5+ {[%clk 0:00:10.7]} 58. Kf3 {[%clk 0:00:05.9]}
58... Qf5+ {[%clk 0:00:11.2]} 0-1